{"text_format":"1","workbook":"xlsx","n_sheets":3,"sheets":["Preisblatt FuStw BAB 60 TKM","Preisblatt FUSTW BAB","Los 1_20 TKM"],"not_rendered":{"charts":0,"images":0,"macros":1,"external_links":0,"defined_names":7,"comments":0,"pivot_tables":0},"unopened":[],"bounds":{"document_bytes":16777216,"sheet_cells":100000,"rows_first":2000,"rows_last":500,"rows_between":2000,"halvings":0,"cell_chars":16384,"cell_head_chars":4096},"cells_cut":0,"cells_raw":0,"read":"whole","date_system":"1900"}

{"sheet":"Preisblatt FuStw BAB 60 TKM","index":0,"n_rows":43,"n_cols":5,"rows_kept":43,"cut":false,"hidden":true,"merged":[[37,1,37,4],[43,0,43,5],[13,1,13,4],[9,1,9,4],[1,1,1,4],[2,3,2,4],[31,1,31,4],[17,1,17,3],[19,1,19,3]]}
[]
[null,"Preisblatt "]
[null,"Kauf-Angebot:",null,"FuStw BAB"]
[]
[null,"Hersteller"]
[null,"Modell"]
[null,"Typ"]
[null,"Antriebsart"]
[]
[null,"Mit \"A\" und \"O\" gekennzeichnete Kriterien"]
[null,"Alle mit \"A\" gekennzeichneten Kriterien werden erfüllt? (ja/nein)",null,null,{"$f":"IF(D11=\"ja\",\"weitere Wertung\",IF(D11=\"nein\",\"Keine Wertung\",IF(D11=\"\",\"Bitte ja oder nein eintragen\")))","v":"Bitte ja oder nein eintragen"}]
[null,"Alle mit \"O\" gekennzeichneten Kriterien werden erfüllt? (ja/nein)",null,null,{"$f":"IF(D12=\"ja\",\"weitere Wertung\",IF(D12=\"nein\",\"Keine Wertung\",IF(D12=\"\",\"Bitte ja oder nein eintragen\")))","v":"Bitte ja oder nein eintragen"}]
[]
[null,"Netto Preise (ohne MwSt.)"]
[null,"Kaufpreis des Fahrzeugs einschließlich aller \"A\"-Kriterien",null,null,"nur zur Information"]
[null,"Kalkulierter Restwert zum Ende der Nutzungszeit von sechs Jahren"]
[]
[null,"Netto Preise"]
[null,"Fahrzeug inkl. aller \"A-/ B-Kriterien\" "]
[null,"Kosten zu den Positionen als Option; \"O\" Kriterien "]
[null,"5.7.4.1: Sitzbezüge hinten abwaschbar "]
[null,"5.7.5: Sitzheizung Fahrer und Beifahrer"]
[null,"6.4: Bi-Xenonscheinwerfer"]
[null,"8.8:  Mobiltelefon-Vorrüstung mit universeller Schnittstelle für diverse Aufnahmeschalen, für Mobiltelefon inkl. Freisprechanlage mit Radiostummschaltung und Antenne"]
[]
[null,"Angaben zum Kauf:"]
[null,"Laufleistung pro Jahr / km",null,60000]
[]
[]
[]
[]
[null,"Berechnung der Kaufkosten; Kosten ohne Mwst."]
[null,"Kaufpreis ohne Optionen (\"O-Kriterien\")",null,{"$f":"SUM(D19)","v":0}]
[null,"Kaufpreis ohne Optionen (\"O-Kriterien\") pro Kilometer",null,{"$f":"SUM(D33*12/D27)","v":0}]
[]
[null,"Kaufpreis Netto inkl. aller \"A-/ B-/ O-Kriterien",null,{"$f":"D19+D21+D22+D23+D24","v":0}]
[null,"Kaufpreis Netto inkl. aller \"A-/ B-/ O-Kriterien pro Kilometer",null,{"$f":"SUM(D36*12/D27)","v":0}]
[null,"Berechnung der Kaufkosten; Kosten inkl. MwSt."]
[null,"monatliche Kosten bei Kauf ohne Optionen (\"O-Kriterien\")",null,{"$f":"D33*1.19","v":0}]
[null,"monatliche Kosten bei Kauf ohne Optionen (\"O-Kriterien\")  pro Kilometer",null,{"$f":"D34*1.19","v":0}]
[]
[null,"monatliche Kosten bei Kauf inkl. aller \"A-/ B-/ O-Kriterien",null,{"$f":"D36*1.19","v":0}]
[null,"Kosten bei Kauf inkl. aller \"A-/ B-/ O-Kriterien pro Kilometer",null,{"$f":"D37*1.19","v":0}]

{"sheet":"Preisblatt FUSTW BAB","index":1,"n_rows":41,"n_cols":5,"rows_kept":41,"cut":false,"hidden":false,"merged":[[29,1,29,4],[35,1,35,4],[41,0,41,5],[1,1,1,4],[2,3,2,4],[9,1,9,4],[13,1,13,4],[22,1,22,4],[19,1,19,4],[16,1,16,4],[4,3,4,4],[5,3,5,4],[6,3,6,4],[7,3,7,4]]}
[]
[null,"Preisblatt "]
[null,"Kauf-Angebot:",null,"FUSTW BAB"]
[]
[null,"Hersteller"]
[null,"Modell"]
[null,"Typ"]
[null,"Antriebsart"]
[]
[null,"Mit \"A\" und \"O\" gekennzeichnete Kriterien"]
[null,"Alle mit \"A\" gekennzeichneten Kriterien werden erfüllt? (ja/nein)",null,null,{"$f":"IF(D11=\"ja\",\"weitere Wertung\",IF(D11=\"nein\",\"Keine Wertung\",IF(D11=\"\",\"Bitte ja oder nein eintragen\")))","v":"Bitte ja oder nein eintragen"}]
[null,"Alle mit \"O\" gekennzeichneten Kriterien werden erfüllt? (ja/nein)",null,null,{"$f":"IF(D12=\"ja\",\"weitere Wertung\",IF(D12=\"nein\",\"Keine Wertung\",IF(D12=\"\",\"Bitte ja oder nein eintragen\")))","v":"Bitte ja oder nein eintragen"}]
[]
[null,"Netto Preise (ohne MwSt.)"]
[null,"Kaufpreis des Fahrzeugs einschließlich aller \"A\"-Kriterien"]
[null,"Kaufpreis des Fahrzeug einschließlich aller \"A-/ B-Kriterien\" "]
[null,"Kosten zu den Positionen als Option (\"O\" Kriterien) "]
[null,"9.11: Sitzbezüge hinten abwaschbar "]
[]
[null,"Brutto Preise (mit MwSt.)"]
[null,"Fahrzeug inkl. aller \"A-/ B-Kriterien\" "]
[null,"Fahrzeug inkl. aller \"A-/ B-/ O-Kriterien\" "]
[]
[null,"Angaben zum Kauf:"]
[null,"Laufleistung pro Jahr / km",null,70000]
[]
[]
[]
[]
[null,"Berechnung der Kaufkosten; Kosten ohne Mwst."]
[null,"Kaufpreis ohne Optionen (\"O-Kriterien\")",null,{"$f":"SUM(D16)","v":0}]
[null,"Kaufpreis ohne Optionen (\"O-Kriterien\") pro Kilometer",null,{"$f":"SUM(D31*12/D25)","v":0}]
[]
[null,"Kaufpreis Netto inkl. aller \"A-/ B-/ O-Kriterien",null,{"$f":"D16+D18+#REF!+#REF!+#REF!","v":{"$error":"#REF!"}}]
[null,"Kaufpreis Netto inkl. aller \"A-/ B-/ O-Kriterien pro Kilometer",null,{"$f":"SUM(D34*12/D25)","v":{"$error":"#REF!"}}]
[null,"Berechnung der Kaufkosten; Kosten inkl. MwSt."]
[null,"monatliche Kosten bei Kauf ohne Optionen (\"O-Kriterien\")",null,{"$f":"D31*1.19","v":0}]
[null,"monatliche Kosten bei Kauf ohne Optionen (\"O-Kriterien\")  pro Kilometer",null,{"$f":"D32*1.19","v":0}]
[]
[null,"monatliche Kosten bei Kauf inkl. aller \"A-/ B-/ O-Kriterien",null,{"$f":"D34*1.19","v":{"$error":"#REF!"}}]
[null,"Kosten bei Kauf inkl. aller \"A-/ B-/ O-Kriterien pro Kilometer",null,{"$f":"D35*1.19","v":{"$error":"#REF!"}}]

{"sheet":"Los 1_20 TKM","index":2,"n_rows":44,"n_cols":5,"rows_kept":44,"cut":false,"hidden":true,"merged":[[32,1,32,4],[38,1,38,4],[44,0,44,5],[19,1,19,3],[1,1,1,4],[2,3,2,4],[9,1,9,4],[13,1,13,4],[17,1,17,3]]}
[]
[null,"Preisblatt "]
[null,"Leasing-Angebot:",null,"FuStw rA; \n20 TKM/p.a. Los 1"]
[]
[null,"Hersteller"]
[null,"Modell"]
[null,"Typ"]
[null,"Antriebsart"]
[]
[null,"Mit \"A\" und \"O\" gekennzeichnete Forderungen"]
[null,"Alle mit \"A\" gekennzeichneten Forderungen werden erfüllt? (ja/nein)",null,null,{"$f":"IF(D11=\"ja\",\"weitere Wertung\",IF(D11=\"nein\",\"Keine Wertung\",IF(D11=\"\",\"Bitte ja oder nein eintragen\")))","v":"Bitte ja oder nein eintragen"}]
[null,"Alle mit \"O\" gekennzeichneten Forderungen werden erfüllt? (ja/nein)",null,null,{"$f":"IF(D12=\"ja\",\"weitere Wertung\",IF(D12=\"nein\",\"Keine Wertung\",IF(D12=\"\",\"Bitte ja oder nein eintragen\")))","v":"Bitte ja oder nein eintragen"}]
[]
[null,"Netto Preise (ohne MwSt.)"]
[null,"Kaufpreis des Fahrzeugs einschließlich aller \"A\"-Forderungen",null,null,"nur zur Information"]
[null,"Kalkulierter Restwert zum Ende der Leasingzeit"]
[]
[null,"Netto Preise"]
[null,"Fahrzeug inkl. aller \"A\" Forderungen "]
[null,"Kosten zu den Positionen als Option"]
[null,"8.6.5: Sitzheizung Fahrer und Beifahrer"]
[null,"11.3:  Vorrüstung Betrieb Mobiltelefon mit \n           Freisprecheinrichtung"]
[]
[]
[]
[]
[null,"Angaben zum Leasing:"]
[null,"Laufleistung pro Jahr / km",null,20000]
[null,"Laufzeit in Monaten"]
[null,"Kosten: Mehrkilometer/je 1.000km"]
[null,"Erstattung: Minderkilometer/je 1.000km"]
[]
[null,"Berechnung der Leasingkosten; Kosten Netto"]
[null,"monatliche Grundleasingrate ",null,{"$f":"SUM(D19)","v":0}]
[null,"Grundleasingrate pro Kilometer",null,{"$f":"SUM(D34*12/D28)","v":0}]
[]
[null,"monatliche Leasingrate inkl. aller \"O\" und \"B\" Forderungen ",null,{"$f":"D19+D21+D22","v":0}]
[null,"Leasingrate inkl. aller \"O\" und \"B\" Forderungen pro Kilometer",null,{"$f":"SUM(D37*12/D28)","v":0}]
[null,"Berechnung der Leasingkosten; Kosten inkl. MwSt."]
[null,"monatliche Grundleasingrate ",null,{"$f":"D34*1.19","v":0}]
[null,"Grundleasingrate pro Kilometer",null,{"$f":"D35*1.19","v":0}]
[]
[null,"monatliche Leasingrate inkl. aller \"O\" und \"B\" Forderungen ",null,{"$f":"D37*1.19","v":0}]
[null,"Leasingrate inkl. aller \"O\" und \"B\" Forderungen pro Kilometer",null,{"$f":"D38*1.19","v":0}]